bitfinex/quotes_SOLUSD_20240716
["timestamp","ask_amount","ask_price","bid_price","bid_amount"]
[1721094802878,0.8109379,158.22,158.17,570.0]
[1721094803585,7.1313379,158.22,158.17,570.0]
[1721094803773,0.8109379,158.22,158.17,570.0]
[1721094807885,0.8109379,158.22,158.18,45.0]
[1721094810576,6.3207,158.21,158.17,570.0]
[1721094811078,0.8109379,158.22,158.17,570.0]
[1721094812509,7.1312379,158.22,158.17,570.0]
[1721094813512,6.3212,158.2,158.17,570.0]
[1721094813710,6.3207,158.21,158.17,570.0]
[1721094813913,0.8109379,158.22,158.17,570.0]
[1721094814122,6.3208,158.21,158.17,570.0]
[1721094814411,0.8109379,158.22,158.17,570.0]
[1721094815494,7.1315379,158.22,158.17,570.0]
[1721094815886,6.3207,158.21,158.17,570.0]
[1721094816722,6.3216,158.19,158.17,570.0]
[1721094817529,6.3211,158.2,158.17,570.0]
[1721094818019,0.8109379,158.22,158.17,570.0]
[1721094818389,6.3216,158.19,158.17,570.0]
[1721094818603,6.3219,158.18,158.17,570.0]
[1721094824449,30.8,158.19,158.17,570.0]
[1721094824744,37.1215,158.19,158.17,570.0]
[1721094824913,6.3219,158.18,158.17,570.0]
[1721094825114,6.3214,158.2,158.17,570.0]
[1721094826045,6.3215,158.19,158.17,570.0]
[1721094827241,6.3219,158.18,158.17,570.0]
[1721094829155,30.8,158.19,158.17,570.0]
[1721094829334,6.3211,158.2,158.17,570.0]
[1721094830063,6.3215,158.19,158.17,570.0]
[1721094830227,6.3219,158.18,158.17,570.0]
[1721094830649,6.3214,158.2,158.17,570.0]
[1721094831655,6.3216,158.19,158.17,570.0]
[1721094832069,6.3219,158.18,158.17,570.0]
[1721094832243,6.3215,158.19,158.17,570.0]
[1721094833230,31.6109379,158.22,158.17,570.0]
[1721094834132,7.1314379,158.22,158.17,570.0]
[1721094835330,0.8109379,158.22,158.17,570.0]
[1721094836256,0.8109379,158.22,158.18,15.1312]
[1721094838634,0.8109379,158.22,158.19,45.0]
[1721094839961,0.8109379,158.22,158.2,6.0527]
[1721094840169,0.8109379,158.22,158.21,45.0]
[1721094841145,0.8109379,158.22,158.21,46.26366769]
[1721094841652,0.8109379,158.22,158.21,45.0]
[1721094842539,0.8109379,158.22,158.2,6.0527]
[1721094844964,0.8109379,158.22,158.18,15.1312]
[1721094845646,7.1313379,158.22,158.18,15.1312]
[1721094845845,0.8109379,158.22,158.18,15.1312]
[1721094847267,0.8109379,158.22,158.18,0.80500643]
[1721094847839,0.8109379,158.22,158.17,570.0]
[1721094848240,0.8109379,158.22,158.18,0.80500643]
[1721094848442,0.8109379,158.22,158.17,570.0]
[1721094848669,0.8109379,158.22,158.18,45.0]
[1721094849368,0.8109379,158.22,158.19,0.39233753]
[1721094850073,0.8109379,158.22,158.18,45.0]
[1721094851068,0.8109379,158.22,158.19,20.0]
[1721094851279,0.8109379,158.22,158.2,45.0]
[1721094853943,0.8109379,158.22,158.21,1.25847921]
[1721094854555,0.8109379,158.22,158.2,45.0]
[1721094855843,0.8109379,158.22,158.19,20.0]
[1721094856041,0.8109379,158.22,158.16,15.9591]
[1721094856042,0.8109379,158.22,158.2,45.38939208]
[1721094856245,0.8109379,158.22,158.21,0.38936746]
[1721094856455,0.8109379,158.22,158.2,45.0]
[1721094857498,0.8109379,158.22,158.21,20.0]
[1721094857660,0.8109379,158.22,158.21,635.0]
[1721094858055,0.8109379,158.22,158.21,570.0]
[1721094862593,0.8109379,158.22,158.21,585.37]
[1721094863362,0.8109379,158.22,158.21,570.0]
[1721094867381,0.8109379,158.22,158.21,630.37]
[1721094868372,0.8109379,158.22,158.21,585.37]
[1721094868573,0.8109379,158.22,158.21,630.37]
[1721094869181,0.8109379,158.22,158.21,585.37]
[1721094869381,0.8109379,158.22,158.21,570.0]
[1721094869790,0.8109379,158.22,158.21,585.37]
[1721094869980,0.8109379,158.22,158.21,630.37]
[1721094870599,0.8109379,158.22,158.21,650.37]
[1721094874690,0.8109379,158.22,158.21,635.0]
[1721094875185,0.8109379,158.22,158.21,650.37]
[1721094877720,0.8109379,158.22,158.21,615.0]
[1721094877900,0.8109379,158.22,158.21,570.0]
[1721094878709,0.8109379,158.22,158.21,585.37]
[1721094879014,0.8109379,158.22,158.21,570.0]
[1721094880006,0.8109379,158.22,158.21,585.37]
[1721094881919,0.8109379,158.22,158.21,570.0]
[1721094882997,0.8109379,158.22,158.21,585.37]
[1721094883522,0.8109379,158.22,158.21,630.37]
[1721094884824,0.8109379,158.22,158.21,585.37]
[1721094885526,0.8109379,158.22,158.21,615.0]
[1721094885694,0.8109379,158.22,158.21,570.0]
[1721094886329,0.8109379,158.22,158.21,585.37]
[1721094886618,0.8109379,158.22,158.21,630.37]
[1721094886821,0.8109379,158.22,158.21,585.37]
[1721094887709,0.8109379,158.22,158.21,570.0]
[1721094888107,0.8109379,158.22,158.21,585.37]
[1721094888702,0.8109379,158.22,158.21,570.0]
[1721094892527,0.8109379,158.22,158.21,585.37]
[1721094893424,0.8109379,158.22,158.21,630.37]
[1721094893623,0.8109379,158.22,158.21,585.37]
[1721094894125,0.8109379,158.22,158.21,630.37]
[1721094894908,0.8109379,158.22,158.21,585.37]
[1721094897811,0.8109379,158.22,158.21,630.37]
[1721094899138,0.8109379,158.22,158.21,650.37]
[1721094900639,0.8109379,158.22,158.21,635.0]
[1721094900931,0.8109379,158.22,158.21,650.37]
[1721094901916,0.8109379,158.22,158.21,635.0]
[1721094902131,0.8109379,158.22,158.21,605.37]
[1721094902516,0.8109379,158.22,158.21,590.0]
[1721094902720,0.8109379,158.22,158.21,605.37]
[1721094903122,0.8109379,158.22,158.21,570.0]
[1721094904240,16.1809379,158.22,158.21,570.0]
[1721094905254,0.8109379,158.22,158.21,570.0]
[1721094905539,16.1809379,158.22,158.21,570.0]
[1721094905737,0.8109379,158.22,158.21,570.0]
[1721094908114,0.8109379,158.22,158.21,528.3581]
[1721094908115,67.5012379,158.22,158.21,528.3581]
[1721094908430,86.5112379,158.22,158.21,388.3115]
[1721094908629,86.5112379,158.22,158.21,347.2649]
[1721094909026,71.1412379,158.22,158.21,347.2649]
[1721094909236,86.5112379,158.22,158.21,347.2649]
[1721094910851,101.8812379,158.22,158.21,347.2649]
[1721094911053,101.8812379,158.22,158.21,213.8849]
[1721094911354,108.2282379,158.22,158.21,213.8849]
[1721094911556,108.2282379,158.22,158.21,179.5049]
[1721094913749,92.8582379,158.22,158.21,179.5049]
[1721094914145,92.8582379,158.22,158.21,80.5049]
[1721094914532,92.8582379,158.22,158.21,46.1249]
[1721094915243,101.9079379,158.22,158.07,31.5974]
[1721094915555,101.9079379,158.22,158.01,22.6362]
[1721094915556,15.37,158.08,158.01,22.6362]
[1721094915739,15.8086,158.15,158.01,22.6362]
[1721094916046,15.8086,158.15,158.06,15.37]
[1721094916047,21.6947,158.11,158.06,15.37]
[1721094916248,15.37,158.1,158.05,15.8176]
[1721094916450,15.37,158.1,158.05,31.1876]
[1721094917027,15.37,158.1,158.05,22.1446]
[1721094917226,15.37,158.1,158.05,37.5146]
[1721094917443,6.3247,158.11,158.06,6.3265]
[1721094917648,15.37,158.1,158.06,6.3265]
[1721094918153,15.37,158.1,158.03,6.3275]
[1721094918154,15.37,158.09,158.03,6.3275]
[1721094918455,15.37,158.08,158.04,6.3272]
[1721094918634,15.37,158.09,158.04,6.3272]
[1721094918833,6.3246,158.12,158.06,6.3263]
[1721094919051,15.37,158.1,158.05,15.37]
[1721094919357,15.37,158.1,158.09,6.3255]
[1721094919547,55.0,158.14,158.05,15.37]
[1721094919752,15.37,158.1,158.05,15.37]
[1721094920054,6.3241,158.13,158.06,15.37]
[1721094920248,15.37,158.12,158.07,15.37]
[1721094920931,15.37,158.12,158.07,21.6962]
[1721094921335,15.37,158.12,158.08,6.3258]
[1721094921938,28.31040492,158.13,158.08,21.6958]
[1721094922131,15.37,158.12,158.06,15.8159]
[1721094922336,15.37,158.11,158.06,31.1859]
[1721094922760,6.3251,158.1,158.06,15.37]
[1721094923133,15.37,158.11,158.06,15.37]
[1721094923457,28.31050492,158.13,158.08,15.37]
[1721094923652,21.6944,158.12,158.07,21.696]
[1721094924445,21.6944,158.12,158.07,15.37]
[1721094924640,6.61630492,158.13,158.08,15.37]
[1721094924839,21.98630492,158.13,158.08,15.37]
[1721094925257,28.31050492,158.13,158.08,15.37]
[1721094925745,6.3244,158.12,158.08,15.37]
[1721094925953,15.37,158.12,158.07,15.37]
[1721094926352,6.61630492,158.13,158.08,21.6958]
[1721094926530,6.61630492,158.13,158.09,6.3252]
[1721094926736,6.3231,158.15,158.11,15.37]
[1721094927349,12.93851939,158.16,158.11,15.37]
[1721094927555,12.93851939,158.16,158.12,15.37]
[1721094927849,6.3231,158.15,158.12,15.37]
[1721094928056,6.3231,158.15,158.11,15.37]
[1721094928848,6.3231,158.15,158.12,16.63469896]
[1721094929057,6.3231,158.15,158.12,15.37]
[1721094929353,6.61551939,158.16,158.12,15.37]
[1721094929554,6.3225,158.17,158.13,15.37]
[1721094929762,6.3228,158.16,158.13,15.37]
[1721094930347,6.3228,158.16,158.14,15.37]
[1721094930661,6.3223,158.17,158.14,15.37]
[1721094931643,15.37,158.2,158.14,15.37]
[1721094931849,15.37,158.2,158.15,15.37]
[1721094932459,6.61388505,158.21,158.17,15.37]
[1721094932761,0.8109379,158.22,158.18,16.44475799]
[1721094932762,6.3211,158.2,158.18,16.44475799]
[1721094932943,16.1809379,158.22,158.17,15.37]
[1721094933143,6.3219,158.18,158.17,15.37]
[1721094933366,6.3219,158.18,158.15,15.37]
[1721094933537,6.3215,158.19,158.15,15.37]
[1721094933734,6.3215,158.19,158.16,16.44618018]
[1721094934852,6.3215,158.19,158.16,15.37]
[1721094935650,6.3211,158.21,158.17,15.37]
[1721094936251,6.3211,158.2,158.17,15.37]
[1721094936842,0.8109379,158.22,158.17,15.37]
[1721094937549,7.1312379,158.22,158.17,21.6919]
[1721094937763,7.1312379,158.22,158.18,15.37]
[1721094937967,7.1312379,158.22,158.18,15.73326704]
[1721094938168,0.8109379,158.22,158.18,21.6918]
[1721094938470,0.8109379,158.22,158.19,15.37]
[1721094939166,7.1312379,158.22,158.19,15.37]
[1721094940765,0.8109379,158.22,158.2,15.37]
[1721094940975,0.8109379,158.22,158.21,15.37]
[1721094941275,0.8109379,158.22,158.21,21.6907]
[1721094942858,0.8109379,158.22,158.2,15.802]
[1721094943261,0.8109379,158.22,158.21,15.37]
[1721094943972,0.8109379,158.22,158.19,15.8596]
[1721094944145,0.8109379,158.22,158.2,15.37]
[1721094944347,0.8109379,158.22,158.19,31.2296]
[1721094944547,7.1312379,158.22,158.17,22.1279]
[1721094944767,7.1312379,158.22,158.17,37.4979]
[1721094944951,7.1312379,158.22,158.17,22.1279]
[1721094945276,0.8109379,158.22,158.19,6.3213]
[1721094945565,0.8109379,158.22,158.18,21.6918]
[1721094945967,7.1312379,158.22,158.18,15.37]
[1721094947559,0.8109379,158.22,158.15,15.4177]
[1721094947768,21.6915,158.19,158.14,37.5016]
[1721094947966,7.1315379,158.22,158.17,6.3222]
[1721094948151,21.6907,158.21,158.16,21.6926]
[1721094948347,6.3212,158.2,158.16,15.37]
[1721094948664,21.6912,158.2,158.15,21.693]
[1721094949549,10.8109379,158.22,158.14,22.1316]
[1721094949868,15.37,158.19,158.15,6.323]
[1721094950066,6.3215,158.19,158.14,37.5019]
[1721094950259,15.37,158.19,158.15,6.323]
[1721094951366,21.6916,158.19,158.14,15.8085]
[1721094951571,15.37,158.18,158.14,15.8085]
[1721094951780,15.37,158.16,158.14,15.8085]
[1721094952070,15.37,158.16,158.14,22.1319]
[1721094952373,6.61430549,158.17,158.15,6.3231]
[1721094952669,15.37,158.18,158.15,6.3231]
[1721094952871,6.6139183,158.19,158.17,6.3222]
[1721094953067,15.37,158.21,158.17,6.3222]
[1721094953551,15.37,158.2,158.16,6.3226]
[1721094953952,22.79360427,158.22,158.17,6.3222]
[1721094954271,15.37,158.19,158.14,15.8085]
[1721094954583,21.6915,158.19,158.14,37.5019]
[1721094954764,15.37,158.2,158.15,15.37]
[1721094955163,21.6911,158.2,158.14,22.1316]
[1721094955364,21.6911,158.2,158.15,15.37]
[1721094955765,21.6911,158.2,158.15,21.693]
[1721094955963,6.3211,158.2,158.16,15.37]
[1721094957174,15.37,158.21,158.16,15.37]
[1721094957855,21.691,158.21,158.16,15.37]
[1721094958056,6.3211,158.2,158.16,15.37]
[1721094958876,21.6907,158.21,158.16,15.37]
[1721094959084,6.3207,158.21,158.17,15.37]
[1721094959792,6.3211,158.2,158.15,21.6927]
[1721094960380,6.3218,158.19,158.15,15.37]
[1721094960763,21.6911,158.21,158.15,21.693]
[1721094960966,6.3212,158.2,158.15,6.323]
[1721094961174,6.3212,158.2,158.15,21.693]
[1721094961881,15.37,158.21,158.16,15.37]
[1721094962057,15.37,158.21,158.15,21.6931]
[1721094962058,6.3211,158.2,158.15,21.6931]
[1721094963168,6.3211,158.2,158.16,15.37]
[1721094963568,0.8109379,158.22,158.17,22.95620467]
[1721094963766,0.8109379,158.22,158.18,1.26418774]
[1721094963966,16.1809379,158.22,158.17,15.37]
[1721094964164,6.3211,158.2,158.16,15.37]
[1721094965157,22.5015379,158.22,158.17,15.37]
[1721094966658,6.3207,158.21,158.17,15.37]
[1721094966871,6.3211,158.2,158.16,15.37]
[1721094967057,6.3211,158.2,158.15,6.323]
[1721094967260,6.3211,158.2,158.16,15.37]
[1721094968082,21.6907,158.21,158.16,21.6926]
[1721094969487,15.37,158.21,158.17,6.3223]
[1721094970374,21.6907,158.21,158.16,21.6926]
[1721094970579,21.6907,158.21,158.16,6.3226]
[1721094971290,0.8109379,158.22,158.17,15.37]
[1721094972197,0.8109379,158.22,158.18,6.3218]
[1721094972493,7.1312379,158.22,158.17,21.6922]
[1721094972790,0.8109379,158.22,158.18,15.37]
[1721094973864,0.8109379,158.22,158.19,21.6914]
[1721094974194,0.8109379,158.22,158.18,15.37]
[1721094974994,7.1312379,158.22,158.18,15.37]
[1721094975803,6.3207,158.21,158.17,37.1792]
[1721094975967,0.8109379,158.22,158.17,30.8573]
[1721094975968,16.1809379,158.22,158.17,30.8573]
[1721094976167,6.3211,158.2,158.17,30.8573]
[1721094976366,6.3211,158.2,158.17,15.4873]
[1721094976789,6.3211,158.2,158.16,15.8058]
[1721094976993,6.3216,158.19,158.16,15.37]
[1721094977177,6.3216,158.19,158.15,15.37]
[1721094977369,15.37,158.19,158.13,15.6885]
[1721094977569,15.37,158.19,158.13,31.0585]
[1721094977873,6.3219,158.18,158.13,37.382]
[1721094978272,6.3219,158.18,158.14,15.37]
[1721094979596,6.3215,158.19,158.15,15.37]
[1721094980092,21.691,158.21,158.16,15.37]
[1721094980688,6.3212,158.2,158.16,15.37]
[1721094980887,6.3212,158.2,158.15,21.6929]
[1721094981269,6.3215,158.19,158.15,15.37]
[1721094981990,21.6911,158.2,158.15,21.6931]
[1721094982289,6.3211,158.2,158.15,21.6931]
[1721094983791,6.3211,158.2,158.16,15.37]
[1721094986193,15.37,158.21,158.16,15.37]
[1721094986374,7.42378037,158.22,158.2,15.37]
[1721094986694,0.8109379,158.22,158.21,15.37]
[1721094987894,0.8109379,158.22,158.19,15.37]
[1721094988305,7.1312379,158.22,158.19,15.37]
[1721094988494,0.8109379,158.22,158.19,15.37]
[1721094989471,0.8109379,158.22,158.2,15.37]
[1721094993613,0.8109379,158.22,158.2,6.321]
[1721094993785,0.8109379,158.22,158.21,15.37]
[1721094993983,0.8109379,158.22,158.21,15.74369539]
[1721094994209,0.8109379,158.22,158.19,16.5706]
[1721094994210,0.8109379,158.22,158.19,22.892]
[1721094994505,0.8109379,158.22,158.19,38.262]
[1721094995500,0.8109379,158.22,158.19,54.0657]
[1721094996081,0.8109379,158.22,158.2,15.37]
[1721094996280,0.8109379,158.22,158.19,38.6957]
[1721094996487,0.8109379,158.22,158.21,15.37]
[1721094996912,0.8109379,158.22,158.19,38.6957]
[1721094997086,0.8109379,158.22,158.2,15.37]
[1721094998287,0.8109379,158.22,158.2,6.321]
[1721094998491,0.8109379,158.22,158.21,15.37]
[1721095000289,0.8109379,158.22,158.2,21.691]
[1721095001299,0.8109379,158.22,158.2,15.37]
[1721095001717,0.8109379,158.22,158.2,21.691]
[1721095004215,0.8109379,158.22,158.21,6.3207]
[1721095004420,0.8109379,158.22,158.21,21.6907]
[1721095005791,0.8109379,158.22,158.21,15.37]
[1721095005991,0.8109379,158.22,158.21,16.63386661]
[1721095007004,0.8109379,158.22,158.21,22.95456661]
[1721095007295,0.8109379,158.22,158.21,21.6907]
[1721095007612,0.8109379,158.22,158.21,66.6907]
[1721095008399,0.8109379,158.22,158.21,67.95194025]
[1721095010621,0.8109379,158.22,158.21,52.58194025]
[1721095010809,0.8109379,158.22,158.21,66.6907]
[1721095010993,0.8109379,158.22,158.21,51.3207]
[1721095011192,0.8109379,158.22,158.21,66.6907]
[1721095014322,0.8109379,158.22,158.21,51.3207]
[1721095014525,0.8109379,158.22,158.21,66.6907]
[1721095014706,0.8109379,158.22,158.21,21.6907]
[1721095016034,0.8109379,158.22,158.21,66.6907]
[1721095017028,0.8109379,158.22,158.21,21.6907]
[1721095017535,0.8109379,158.22,158.21,66.6907]
[1721095017733,0.8109379,158.22,158.21,51.3207]
[1721095017918,0.8109379,158.22,158.21,66.6907]
[1721095021613,0.8109379,158.22,158.21,67.10872687]
[1721095021829,0.8109379,158.22,158.21,66.6907]
[1721095022138,0.8109379,158.22,158.21,51.3207]
[1721095022435,0.8109379,158.22,158.21,66.6907]
[1721095022937,0.8109379,158.22,158.21,51.3207]
[1721095023235,0.8109379,158.22,158.21,66.6907]
[1721095024442,0.8109379,158.22,158.21,6.3207]
[1721095024735,0.8109379,158.22,158.21,21.6907]
[1721095025932,0.8109379,158.22,158.21,66.6907]
[1721095030452,0.8109379,158.22,158.21,67.95179995]
[1721095030828,6.3164,158.32,158.27,6.318]
[1721095031029,6.3164,158.32,158.28,16.63054222]
[1721095031861,12.6077,158.33,158.28,22.94844222]
[1721095032161,6.3155,158.34,158.3,15.37]
[1721095034062,6.3161,158.33,158.29,15.37]
[1721095034555,6.3157,158.34,158.29,21.6873]
[1721095034761,21.6857,158.34,158.29,21.6873]
[1721095035565,21.686,158.33,158.27,6.318]
[1721095035739,21.6864,158.32,158.27,21.688]
[1721095036547,6.6077447,158.35,158.28,21.6878]
[1721095036548,15.37,158.33,158.28,21.6878]
[1721095037364,6.3159,158.33,158.29,15.37]
[1721095037565,21.6855,158.34,158.29,21.6874]
[1721095037770,6.3155,158.34,158.29,21.6874]
[1721095038068,21.6855,158.34,158.29,21.6874]
[1721095038237,6.6077447,158.35,158.29,15.37]
[1721095038561,28.2928447,158.35,158.3,22.95015682]
[1721095038741,28.2928447,158.35,158.31,1.26307702]
[1721095039765,6.3155,158.34,158.3,21.687]
[1721095040056,6.3155,158.34,158.3,15.37]
[1721095040866,21.6855,158.34,158.29,6.3174]
[1721095041067,21.6855,158.34,158.29,21.6874]
[1721095042044,6.3159,158.33,158.28,22.1117]
[1721095042259,21.6859,158.33,158.28,37.4817]
[1721095043164,6.3155,158.34,158.29,21.6875]
[1721095043355,21.6855,158.34,158.29,21.6875]
[1721095044879,15.37,158.34,158.3,6.317]
[1721095045541,21.6855,158.34,158.3,6.317]
[1721095046369,15.37,158.34,158.29,15.37]
[1721095046556,15.37,158.34,158.3,6.317]
[1721095048572,15.37,158.34,158.31,15.7914]
[1721095049170,15.37,158.34,158.31,22.1081]
[1721095049848,6.3147,158.36,158.31,22.1081]
[1721095050251,15.37,158.35,158.31,22.1081]
[1721095050658,15.37,158.32,158.25,15.37]
[1721095050850,15.37,158.3,158.25,15.37]
[1721095051351,10.0,158.36,158.28,6.3179]
[1721095051573,15.37,158.32,158.28,6.3179]
[1721095051790,15.37,158.31,158.28,6.3179]
[1721095052086,15.37,158.3,158.26,22.1141]
[1721095052383,21.6871,158.3,158.26,15.7958]
[1721095052585,15.37,158.3,158.26,15.7958]
[1721095052963,15.37,158.31,158.26,31.1658]
[1721095053366,21.6867,158.31,158.26,37.4844]
[1721095053568,21.6867,158.31,158.26,31.1658]
[1721095053569,6.3171,158.3,158.26,31.1658]
[1721095053863,21.6871,158.3,158.26,15.7958]
[1721095054386,15.37,158.3,158.26,22.1143]
[1721095055460,7.1083379,158.37,158.28,15.37]
[1721095055667,21.6851,158.35,158.27,45.0]
[1721095055883,6.60744151,158.35,158.3,15.37]
[1721095056082,12.92254151,158.35,158.31,1.03050528]
[1721095056393,28.29254151,158.35,158.31,1.03050528]
[1721095056795,6.60744151,158.35,158.32,15.7902]
[1721095056978,0.8109379,158.37,158.35,6.315]
[1721095057382,0.8109379,158.37,158.34,6.3154]
[1721095057875,0.8109379,158.37,158.33,15.37]
[1721095058072,16.1809379,158.37,158.32,31.1602]
[1721095058270,22.4953379,158.37,158.32,31.1602]
[1721095058475,0.8109379,158.37,158.33,15.37]
[1721095059497,0.8109379,158.37,158.33,21.6859]
[1721095060690,0.8109379,158.37,158.34,6.3154]
[1721095061595,0.8109379,158.37,158.36,6.3147]
[1721095061807,0.8109379,158.37,158.35,15.37]
[1721095062000,0.8109379,158.37,158.36,1.05188468]
[1721095062301,0.8109379,158.37,158.36,15.37]
[1721095062502,0.8109379,158.37,158.31,15.9951]
[1721095062503,0.8109379,158.37,158.35,21.6851]
[1721095064884,0.8109379,158.37,158.36,21.6847]
[1721095065087,0.8109379,158.37,158.36,66.6847]
[1721095065510,0.8109379,158.37,158.36,82.2826]
[1721095065990,0.8109379,158.37,158.36,83.54508861]
[1721095068292,0.8109379,158.37,158.36,82.2826]
[1721095068595,0.8109379,158.37,158.36,15.5979]
[1721095068798,0.8109379,158.37,158.36,37.2826]
[1721095070087,0.8109379,158.37,158.36,82.2826]
[1721095070798,0.8109379,158.37,158.36,66.9126]
[1721095071002,0.8109379,158.37,158.36,82.2826]
[1721095073214,0.8109379,158.37,158.36,15.37]
[1721095073399,0.8109379,158.37,158.34,15.37]
[1721095073914,0.8109379,158.37,158.34,6.3153]
[1721095074209,0.8109379,158.37,158.34,21.6853]
[1721095074508,0.8109379,158.37,158.36,15.37]
[1721095074711,0.8109379,158.37,158.36,21.6847]
[1721095075814,0.8109379,158.37,158.35,15.37]
[1721095077387,0.8109379,158.37,158.36,15.37]
[1721095078520,0.8109379,158.37,158.36,21.6847]
[1721095080294,0.8109379,158.37,158.33,6.5192]
[1721095080490,0.8109379,158.37,158.36,15.37]
[1721095081805,0.8109379,158.37,158.35,21.6851]
[1721095082917,0.8109379,158.37,158.36,21.6847]
[1721095084514,0.8109379,158.37,158.35,21.685]
[1721095085126,0.8109379,158.37,158.36,15.37]
[1721095085426,0.8109379,158.37,158.36,21.6847]
[1721095085996,0.8109379,158.37,158.36,15.37]
[1721095086420,0.8109379,158.37,158.36,21.6847]
[1721095088501,0.8109379,158.37,158.36,15.37]
[1721095088922,0.8109379,158.37,158.35,15.37]
[1721095089412,0.8109379,158.37,158.34,6.3154]
[1721095089614,0.8109379,158.37,158.35,15.37]
[1721095090726,0.8109379,158.37,158.33,6.3158]
[1721095090919,0.8109379,158.37,158.34,15.37]
[1721095091117,0.8109379,158.37,158.36,6.3147]
[1721095091307,0.8109379,158.37,158.36,21.6847]
[1721095094702,0.8109379,158.37,158.36,22.03804802]
[1721095094937,0.8109379,158.37,158.36,67.03804802]
[1721095097128,0.8109379,158.37,158.36,66.6847]
[1721095098432,0.8109379,158.37,158.36,67.9471099]
[1721095099509,15.7738,158.5,158.36,81.6324099]
[1721095099705,6.3107,158.46,158.43,15.37]
[1721095099938,15.37,158.49,158.44,15.37]
[1721095100542,6.3102,158.48,158.44,15.37]
[1721095101235,6.3102,158.48,158.43,7.57370041]
[1721095101546,6.3097,158.49,158.46,15.37]
[1721095102234,6.60145658,158.5,158.46,16.63156185]
[1721095102235,12.91055658,158.5,158.46,16.63156185]
[1721095102411,6.3091,158.5,158.47,15.37]
[1721095102608,10.70805701,158.51,158.47,15.37]
[1721095102839,6.3087,158.51,158.47,15.37]
[1721095103534,6.3092,158.5,158.47,15.37]
[1721095103847,6.3096,158.49,158.47,15.37]
[1721095104337,6.60060274,158.52,158.47,15.37]
[1721095104533,6.60060274,158.52,158.5,15.37]
[1721095104726,0.8109379,158.53,158.5,15.37]
[1721095104727,0.8109379,158.53,158.51,15.37]
[1721095107045,0.8109379,158.53,158.46,16.2747]
[1721095107242,0.8109379,158.53,158.5,15.37]
[1721095107731,6.3086,158.52,158.5,15.37]
[1721095107949,7.1188379,158.53,158.5,15.37]
[1721095108143,0.8109379,158.53,158.5,15.37]
[1721095108649,0.8109379,158.53,158.5,21.6791]
[1721095108820,0.8109379,158.53,158.51,15.37]
[1721095109018,0.8109379,158.53,158.52,22.93774877]
[1721095109240,0.8109379,158.53,158.52,15.37]
[1721095109418,0.8109379,158.53,158.52,16.63148844]
[1721095110620,0.8109379,158.53,158.52,15.37]
[1721095112221,0.8109379,158.53,158.51,15.37]
[1721095113327,0.8109379,158.53,158.52,15.37]
[1721095114248,0.8109379,158.53,158.52,21.6783]
[1721095115650,0.8109379,158.53,158.52,15.37]
[1721095116525,0.8109379,158.53,158.51,6.3087]
[1721095116727,0.8109379,158.53,158.52,15.37]
[1721095117530,0.8109379,158.53,158.52,21.6783]
[1721095119238,0.8109379,158.53,158.52,37.1731]
[1721095119549,0.8109379,158.53,158.52,83.35302605]
[1721095119966,0.8109379,158.53,158.52,82.1731]
[1721095120135,0.8109379,158.53,158.52,21.8031]
[1721095120469,0.8109379,158.53,158.37,10.0]
[1721095120470,0.8109379,158.53,158.47,6.3485]
[1721095120646,0.8109379,158.53,158.52,15.37]
[1721095120843,0.8109379,158.53,158.52,21.6783]
[1721095122761,0.8109379,158.53,158.52,6.3083]
[1721095122960,0.8109379,158.53,158.52,21.6783]
[1721095123269,0.8109379,158.53,158.52,15.37]